bitfinex/quotes_SOLUSD_20251208
["timestamp","ask_amount","ask_price","bid_price","bid_amount"]
[1765156976517,0.1,132.61,132.6,11.7507306]
[1765156976716,0.1,132.61,132.6,10.48476478]
[1765156977212,0.1,132.65,132.64,2.22328666]
[1765156977611,0.1,132.65,132.64,2.89328666]
[1765156978408,0.1,132.65,132.64,10.43249052]
[1765156978606,0.1,132.65,132.64,0.67]
[1765156979502,0.1,132.65,132.64,2.89328666]
[1765156980221,0.1,132.68,132.64,19.24243544]
[1765156980514,0.1,132.68,132.67,2.22328666]
[1765156980716,0.1,132.68,132.66,2.22328666]
[1765156980903,0.1,132.68,132.65,2.89328666]
[1765156981096,0.1,132.68,132.66,2.22328666]
[1765156981293,0.1,132.68,132.66,2.89328666]
[1765156981524,0.1,132.68,132.66,0.67]
[1765156981903,0.1,132.68,132.67,0.67]
[1765156982218,0.1,132.68,132.66,0.67]
[1765156982421,0.1,132.68,132.65,0.67]
[1765156983505,2.22328666,132.67,132.61,0.67]
[1765156983710,2.22328666,132.66,132.62,0.67]
[1765156984025,10.96328666,132.68,132.62,10.43326988]
[1765156984396,10.96328666,132.68,132.63,0.67]
[1765156984597,8.74,132.68,132.63,8.20976107]
[1765156985025,0.1,132.68,132.64,2.89328666]
[1765156985501,0.1,132.68,132.65,8.20828377]
[1765156985894,0.1,132.68,132.66,0.67]
[1765156987231,0.1,132.68,132.66,8.2078684]
[1765156987421,0.1,132.68,132.67,2.22328666]
[1765156987610,0.1,132.68,132.67,2.89328666]
[1765156987811,0.1,132.68,132.67,0.67]
[1765156988019,0.1,132.68,132.65,10.43178226]
[1765156988330,0.1,132.68,132.66,8.20806189]
[1765156988723,0.1,132.68,132.67,0.67]
[1765156989718,0.1,132.68,132.65,7.5386355]
[1765156989920,0.1,132.68,132.65,0.67]
[1765156990123,2.62328666,132.68,132.63,9.01]
[1765156990529,2.62328666,132.68,132.64,0.67]
[1765156990719,2.22328666,132.67,132.64,0.67]
[1765156991115,2.22328666,132.66,132.62,8.21031888]
[1765156991430,2.52328666,132.67,132.63,0.67]
[1765156992002,10.06122255,132.67,132.63,0.67]
[1765156993333,2.52328666,132.66,132.61,8.21072457]
[1765156993832,2.52328666,132.66,132.62,0.67]
[1765156994058,2.22328666,132.66,132.62,0.67]
[1765156994341,7.5385096,132.66,132.62,8.21014563]
[1765156994508,7.5385096,132.66,132.62,0.67]
[1765156994714,9.76179626,132.66,132.63,0.67]
[1765156995142,10.06098532,132.67,132.63,0.67]
[1765156995311,7.53769866,132.67,132.63,0.67]
[1765156995517,7.53769866,132.67,132.63,2.89328666]
[1765156995729,7.53769866,132.67,132.64,0.67]
[1765156997341,7.63693096,132.68,132.64,0.67]
[1765156997726,2.22328666,132.67,132.61,2.89328666]
[1765156997913,2.22328666,132.65,132.6,0.67]
[1765156998342,2.52328666,132.64,132.6,0.67]
[1765156998737,2.22328666,132.64,132.6,0.67]
[1765156999136,2.52328666,132.66,132.6,10.43474046]
[1765156999523,9.76192216,132.65,132.61,0.67]
[1765157000125,28.90851092,132.65,132.61,0.67]
[1765157000324,28.60851092,132.65,132.61,0.67]
[1765157000824,9.76192216,132.65,132.61,0.67]
[1765157001024,26.97215066,132.68,132.62,10.56328666]
[1765157001223,7.53773687,132.67,132.63,0.71]
[1765157001928,9.76102353,132.67,132.63,0.71]
[1765157002329,10.06102353,132.67,132.63,0.71]
[1765157002741,2.52328666,132.66,132.61,8.25035318]
[1765157003054,2.22328666,132.65,132.61,0.71]
[1765157003232,2.22328666,132.65,132.62,0.71]
[1765157003546,7.5386355,132.65,132.62,0.71]
[1765157004043,7.53817404,132.66,132.62,0.71]
[1765157004252,26.97215066,132.68,132.62,8.25012045]
[1765157004738,9.76101645,132.67,132.63,0.71]
[1765157004939,8.44,132.68,132.63,2.93328666]
[1765157005318,15.97720154,132.68,132.64,0.71]
[1765157005521,15.97720154,132.68,132.64,10.4720676]
[1765157005929,15.97720154,132.68,132.65,0.71]
[1765157006421,7.63720154,132.68,132.65,0.71]
[1765157006621,0.1,132.68,132.65,0.71]
[1765157008351,0.1,132.68,132.65,8.24861401]
[1765157008949,0.1,132.68,132.65,0.71]
[1765157010144,2.62328666,132.68,132.64,0.71]
[1765157011430,7.53749905,132.67,132.64,0.71]
[1765157011634,9.76078571,132.67,132.64,0.71]
[1765157011949,10.06078571,132.67,132.63,7.53961195]
[1765157012133,10.06078571,132.67,132.63,8.24961195]
[1765157012335,10.06078571,132.67,132.63,0.71]
[1765157012536,9.76078571,132.67,132.64,0.71]
[1765157012752,10.06078571,132.67,132.63,0.71]
[1765157013055,9.76078571,132.67,132.63,0.71]
[1765157013556,10.06078571,132.67,132.63,0.71]
[1765157014057,2.52328666,132.66,132.62,0.71]
[1765157014432,2.22328666,132.65,132.62,0.71]
[1765157015356,7.5386355,132.65,132.62,0.71]
[1765157018261,7.53806723,132.66,132.62,0.71]
[1765157018465,7.53806723,132.66,132.62,2.93328666]
[1765157018758,7.53806723,132.66,132.63,0.71]
[1765157020033,7.53766241,132.67,132.63,0.71]
[1765157020569,7.53766241,132.67,132.63,8.24959612]
[1765157020938,7.53766241,132.67,132.64,0.71]
[1765157024042,7.83766241,132.67,132.62,7.54025583]
[1765157024261,10.06094907,132.67,132.63,0.71]
[1765157025965,0.3,132.66,132.63,0.71]
[1765157026143,28.90469671,132.67,132.63,0.71]
[1765157028957,28.60469671,132.67,132.63,0.71]
[1765157029158,28.90469671,132.67,132.63,0.71]
[1765157029967,28.90469671,132.67,132.63,8.2496745]
[1765157029968,7.53766241,132.67,132.63,8.2496745]
[1765157030452,7.53766241,132.67,132.64,0.71]
[1765157030648,15.97717705,132.68,132.64,0.71]
[1765157032870,0.3,132.67,132.62,7.54034082]
[1765157033068,0.3,132.67,132.63,0.66]
[1765157033373,18.50046371,132.68,132.63,0.66]
[1765157034165,18.50046371,132.68,132.63,8.19957135]
[1765157034664,18.50046371,132.68,132.64,0.66]
[1765157035479,15.97717705,132.68,132.64,8.19915445]
[1765157035780,15.97717705,132.68,132.65,0.66]
[1765157036456,18.20046371,132.68,132.65,0.66]
[1765157036657,15.97717705,132.68,132.65,0.66]
[1765157041784,3.47350665,132.66,132.62,0.7]
[1765157042177,3.77350665,132.67,132.63,0.7]
[1765157042575,7.53806723,132.66,132.63,0.7]
[1765157044289,11.31157388,132.66,132.63,0.7]
[1765157044589,11.01157388,132.66,132.63,0.7]
[1765157045185,29.85674197,132.66,132.63,0.7]
[1765157047090,26.38323532,132.66,132.63,0.7]
[1765157049396,22.31867474,132.66,132.63,0.7]
[1765157050306,18.84516809,132.66,132.63,0.7]
[1765157050496,26.31693532,132.66,132.63,0.7]
[1765157053175,7.53806723,132.66,132.63,0.7]
[1765157058086,0.1,132.68,132.64,3.47350665]
[1765157058282,0.1,132.68,132.65,3.47350665]
[1765157058593,0.1,132.68,132.65,4.17350665]
[1765157058900,0.1,132.68,132.66,0.7]
[1765157060204,3.47350665,132.67,132.62,7.54011724]
[1765157060408,3.47350665,132.66,132.62,0.7]
[1765157060808,3.47350665,132.66,132.62,8.24023902]
[1765157061006,3.47350665,132.67,132.63,7.53973309]
[1765157061209,3.47350665,132.67,132.63,8.20973309]
[1765157061419,3.47350665,132.67,132.64,0.67]
[1765157061779,3.47350665,132.67,132.62,7.540256]
[1765157062086,7.53806723,132.66,132.63,0.67]
[1765157063097,15.95713365,132.68,132.63,11.6831738]
[1765157063299,16.25713365,132.68,132.63,11.6831738]
[1765157063596,16.25713365,132.68,132.64,0.67]
[1765157064520,15.95713365,132.68,132.64,0.67]
[1765157064988,7.93713365,132.68,132.64,0.67]
[1765157065187,11.4106403,132.68,132.64,0.67]
[1765157068904,7.63713365,132.68,132.64,0.67]
[1765157069604,7.93713365,132.68,132.64,0.67]
[1765157070004,7.63713365,132.68,132.64,8.2091974]
[1765157070497,7.63713365,132.68,132.65,0.67]
[1765157070692,26.47946105,132.68,132.65,0.67]
[1765157071299,26.77946105,132.68,132.65,0.67]
[1765157071515,26.47946105,132.68,132.65,0.67]
[1765157073220,26.77946105,132.68,132.65,0.67]
[1765157073924,0.3,132.67,132.62,0.67]
[1765157075312,7.53806723,132.66,132.62,4.14350665]
[1765157075796,7.53806723,132.66,132.63,0.67]
[1765157076926,7.53806723,132.66,132.63,4.14350665]
[1765157077423,7.53806723,132.66,132.64,0.67]
[1765157077927,7.5376266,132.67,132.64,4.14350665]
[1765157078226,7.5376266,132.67,132.65,0.67]
[1765157078529,26.47925836,132.68,132.65,0.67]
[1765157080436,7.63693096,132.68,132.65,4.14350665]
[1765157080805,7.63693096,132.68,132.66,0.67]
[1765157082027,0.1,132.68,132.66,0.67]
[1765157082809,0.1,132.68,132.65,0.67]
[1765157083031,0.4,132.68,132.64,12.46350665]
[1765157083204,0.4,132.68,132.62,3.47350665]
[1765157083205,12.19350665,132.68,132.62,3.47350665]
[1765157083405,3.77350665,132.67,132.62,0.67]
[1765157083814,0.3,132.66,132.62,0.67]
[1765157084034,7.53806723,132.66,132.62,0.67]
[1765157084620,7.83806723,132.66,132.62,0.67]
[1765157086834,7.53806723,132.66,132.62,0.67]
[1765157087821,7.53771753,132.67,132.63,3.47350665]
[1765157088221,7.53771753,132.67,132.64,0.67]
[1765157091233,7.83771753,132.67,132.63,0.7]
[1765157091434,11.31122418,132.67,132.63,0.7]
[1765157092216,7.83771753,132.67,132.63,0.7]
[1765157092612,26.68146517,132.67,132.63,0.7]
[1765157092818,26.38146517,132.67,132.63,0.7]
[1765157095844,26.38146517,132.67,132.63,4.17350665]
[1765157096048,26.38146517,132.67,132.64,0.7]
[1765157098529,7.53771753,132.67,132.64,0.7]
[1765157104246,7.53771753,132.67,132.64,8.23913849]
[1765157104447,0.1,132.68,132.65,2.22305371]
[1765157104648,0.1,132.68,132.65,2.94305371]
[1765157104949,7.63694494,132.68,132.66,0.72]
[1765157106156,0.1,132.68,132.66,0.72]
[1765157109166,0.1,132.68,132.63,18.08280952]
[1765157109454,0.1,132.68,132.66,0.72]
[1765157112351,0.1,132.68,132.67,2.22305371]
[1765157112528,0.1,132.68,132.66,2.94305371]
[1765157112936,0.1,132.68,132.67,0.72]
[1765157117445,0.1,132.68,132.67,2.94305371]
[1765157118466,0.1,132.68,132.67,10.48055276]
[1765157118673,0.1,132.68,132.67,19.29049768]
[1765157120948,0.1,132.68,132.67,10.48055276]
[1765157121149,0.1,132.68,132.67,0.72]
[1765157122145,0.1,132.68,132.67,10.48055276]
[1765157126695,0.1,132.68,132.67,2.94305371]
[1765157126853,0.1,132.68,132.67,0.72]
[1765157127568,0.1,132.68,132.65,0.67]
[1765157127761,0.1,132.68,132.65,2.89305371]
[1765157128270,0.1,132.68,132.66,0.67]
[1765157129273,0.1,132.68,132.66,8.20806347]
[1765157129497,0.1,132.68,132.67,2.22305371]
[1765157129651,0.1,132.68,132.67,2.89305371]
[1765157132886,0.1,132.68,132.67,10.43055276]
[1765157133792,0.1,132.68,132.67,72.63055276]
[1765157135792,0.1,132.68,132.67,81.44049768]
[1765157137070,0.1,132.68,132.67,97.74936168]
[1765157141170,0.1,132.7,132.67,119.61072464]
[1765157141385,0.1,132.7,132.69,11.03299863]
[1765157141589,0.1,132.7,132.69,73.23299863]
[1765157141806,0.1,132.7,132.69,81.43936158]
[1765157142694,0.1,132.7,132.69,97.59191467]
[1765157142891,0.1,132.73,132.72,25.11880892]
[1765157143099,0.1,132.73,132.72,37.88491634]
[1765157143264,7.63089415,132.79,132.73,8.80994492]
[1765157143594,8.03074402,132.79,132.74,10.54305371]
[1765157143905,8.03074402,132.79,132.74,18.74610878]
[1765157144068,8.03074402,132.79,132.75,2.89305371]
[1765157144268,0.1,132.79,132.75,2.89305371]
[1765157144470,0.1,132.79,132.76,0.67]
[1765157144701,0.1,132.79,132.76,2.89305371]
[1765157145204,0.5,132.79,132.76,2.89305371]
[1765157145494,26.85769358,132.79,132.75,8.32]
[1765157145679,26.85769358,132.79,132.74,11.21305371]
[1765157145873,0.4,132.78,132.74,11.21305371]
[1765157146288,0.4,132.78,132.75,0.5]
[1765157146789,7.9315428,132.78,132.75,0.5]
[1765157147296,7.9315428,132.78,132.75,1.17]
[1765157147503,0.4,132.77,132.75,0.5]
[1765157147788,7.63084879,132.79,132.75,2.22305371]
[1765157147992,7.63084879,132.79,132.76,0.67]
[1765157148191,0.1,132.79,132.77,2.22305371]
[1765157148580,0.1,132.79,132.78,2.89305371]
[1765157149709,0.1,132.79,132.78,11.21305371]
[1765157150680,0.1,132.79,132.78,18.74430841]
[1765157154500,0.1,132.79,132.78,80.94430841]
[1765157155538,0.1,132.81,132.78,80.94430841]
[1765157155539,0.1,132.81,132.79,8.80994492]
[1765157155697,0.1,132.81,132.8,10.54305371]
[1765157156020,0.1,132.81,132.8,11.24305371]
[1765157156319,0.1,132.81,132.8,30.05860999]
[1765157156511,7.52502069,132.89,132.85,2.22305371]
[1765157156723,7.52502069,132.89,132.86,3.46110166]
[1765157156892,7.52502069,132.89,132.85,11.78110166]
[1765157157087,8.12502069,132.89,132.86,3.46110166]
[1765157157309,7.52502069,132.89,132.87,3.46110166]
[1765157157616,8.12502069,132.89,132.87,3.46110166]
[1765157157818,7.52502069,132.89,132.86,3.46110166]
[1765157158026,0.6,132.88,132.84,11.78110166]
[1765157158192,0.6,132.88,132.83,3.46110166]
[1765157158394,16.308864,132.86,132.8,7.52967176]
[1765157158696,19.76996566,132.86,132.8,3.46110166]
[1765157158897,0.6,132.85,132.8,3.46110166]
[1765157159208,16.308864,132.86,132.83,3.46110166]
[1765157159394,0.6,132.86,132.84,3.46110166]
[1765157159587,0.6,132.85,132.84,3.46110166]
[1765157159896,0.6,132.86,132.83,10.98950067]
[1765157160108,8.12658777,132.87,132.83,10.98950067]
[1765157160301,0.6,132.86,132.83,10.98950067]
[1765157160688,0.6,132.86,132.83,3.46110166]
[1765157161310,4.06110166,132.86,132.81,15.84934796]
[1765157161497,0.6,132.86,132.81,19.31044962]
[1765157161705,10.98768943,132.87,132.81,19.31044962]
[1765157161706,8.12728641,132.85,132.81,19.31044962]
[1765157162739,8.12728641,132.85,132.81,11.68044962]
[1765157163097,0.6,132.85,132.82,3.46110166]
[1765157163298,0.6,132.85,132.82,10.99002659]
[1765157163696,8.12634814,132.87,132.83,3.46110166]
[1765157164034,8.12634814,132.87,132.84,3.46110166]
[1765157164394,47.72147868,132.91,132.85,4.15110166]
[1765157164602,27.1304321,132.91,132.86,3.46110166]
[1765157164810,0.6,132.9,132.86,3.46110166]
[1765157165009,8.12445447,132.9,132.86,3.46110166]
[1765157165322,8.12445447,132.9,132.87,3.46110166]
[1765157165522,8.12445447,132.9,132.87,4.15110166]
[1765157165725,8.12445447,132.9,132.86,7.52648423]
[1765157165726,23.83294311,132.91,132.88,4.15110166]
[1765157166097,24.43294311,132.91,132.88,3.46110166]
[1765157166409,0.6,132.9,132.87,3.46110166]
[1765157166612,24.43294311,132.91,132.87,4.15110166]
[1765157166806,0.6,132.9,132.87,3.46110166]
[1765157167010,24.43294311,132.91,132.87,11.67719748]
[1765157167200,0.6,132.9,132.88,3.46110166]
[1765157167405,24.43294311,132.91,132.88,3.46110166]
[1765157168006,0.6,132.9,132.88,3.46110166]
[1765157168218,16.308864,132.91,132.88,4.15110166]
[1765157168418,8.12285176,132.93,132.9,3.46110166]
[1765157168714,7.52285176,132.93,132.9,3.46110166]
[1765157168936,0.6,132.93,132.9,4.15110166]
[1765157169116,0.6,132.93,132.91,3.46110166]
[1765157170031,0.6,132.93,132.9,3.46110166]
[1765157170433,4.06110166,132.93,132.88,3.46110166]
[1765157171032,0.6,132.92,132.88,3.46110166]
[1765157171230,7.52388834,132.91,132.87,11.78110166]
[1765157171746,0.6,132.9,132.85,3.46110166]
[1765157172206,3.46110166,132.89,132.84,7.52729217]
[1765157172817,0.6,132.88,132.84,8.21729217]
[1765157173423,0.6,132.88,132.84,11.67839383]
[1765157174022,7.52461257,132.9,132.84,10.98839383]
[1765157174223,19.40748412,132.93,132.88,3.46110166]
[1765157174606,0.6,132.92,132.88,4.15110166]
[1765157174802,0.6,132.92,132.88,9.87048263]
[1765157175329,7.52332229,132.92,132.9,9.18048263]
[1765157175507,8.12332229,132.92,132.9,9.18048263]
[1765157175826,7.52332229,132.92,132.9,9.18048263]
[1765157176605,26.93024045,132.93,132.9,9.18048263]
[1765157177105,0.6,132.92,132.9,9.18048263]
[1765157177727,8.12370986,132.92,132.9,9.18048263]
[1765157179745,0.6,132.91,132.89,9.18048263]
[1765157180419,7.52370986,132.92,132.9,9.18048263]
[1765157180620,8.12370986,132.92,132.9,9.18048263]
[1765157180829,0.6,132.91,132.9,9.18048263]
[1765157181142,34.38934663,132.91,132.85,9.18048263]
[1765157181341,9.18048263,132.9,132.85,9.18048263]
[1765157181642,9.18048263,132.9,132.84,9.18048263]
[1765157181643,7.52615338,132.87,132.84,9.18048263]
[1765157182039,7.52581982,132.88,132.85,9.18048263]
[1765157182540,42.96982926,132.91,132.86,9.89048263]
[1765157182541,44.01860435,132.91,132.86,9.89048263]
[1765157182743,23.83293505,132.91,132.89,9.18048263]
[1765157182929,9.78048263,132.92,132.9,9.18048263]
[1765157182930,16.70393068,132.92,132.9,9.18048263]
[1765157183130,7.52344805,132.92,132.9,9.18048263]
[1765157183363,7.52219046,132.94,132.91,9.89048263]
[1765157183530,7.52219046,132.94,132.92,9.18048263]
[1765157183866,8.12219046,132.94,132.89,8.23486675]
[1765157184042,8.12219046,132.94,132.92,9.18048263]
[1765157184548,8.12219046,132.94,132.91,9.18048263]
[1765157185249,7.52219046,132.94,132.91,9.18048263]
[1765157185547,9.40994492,132.98,132.93,9.18048263]
[1765157185744,8.9,132.98,132.95,9.18048263]
[1765157185943,8.9,132.98,132.94,9.18048263]
[1765157186238,0.6,132.97,132.94,9.18048263]
[1765157187343,7.52049334,132.97,132.94,9.18048263]
[1765157187535,7.52049334,132.97,132.95,9.18048263]
[1765157187735,7.52049334,132.97,132.94,0.71]
[1765157187736,8.12049334,132.97,132.94,9.18048263]
[1765157187940,7.52049334,132.97,132.94,9.89048263]
[1765157188340,7.52049334,132.97,132.95,9.18048263]
[1765157189930,15.8200609,132.98,132.96,9.18048263]
[1765157190255,7.5195485,132.99,132.96,9.89048263]
[1765157190635,7.5195485,132.99,132.97,9.18048263]
[1765157191344,7.61887373,133.0,132.97,9.89048263]
[1765157191658,0.1,133.0,132.99,9.18048263]
[1765157191954,0.7,133.0,132.97,9.18048263]
[1765157192159,0.1,133.0,132.99,9.18048263]
[1765157192533,0.1,133.0,132.99,9.89048263]
[1765157193533,0.1,133.0,132.99,17.40984498]
[1765157194156,0.1,133.0,132.99,25.70984498]
[1765157196460,0.1,133.0,132.99,18.19048263]
[1765157196935,0.1,133.0,132.99,25.70984498]
[1765157197356,0.1,133.0,132.99,18.19048263]
[1765157198363,0.1,133.0,132.99,25.70984498]
[1765157199576,0.1,133.0,132.99,9.18048263]
[1765157199875,0.1,133.0,132.99,9.89048263]
[1765157200175,26.40412767,133.06,132.99,17.40984498]
[1765157200335,0.1,133.06,133.05,9.18048263]
[1765157200539,0.1,133.06,133.04,9.18048263]
[1765157200746,0.1,133.06,133.05,9.18048263]
[1765157202851,0.1,133.06,133.03,8.22688462]
[1765157203060,0.1,133.06,133.04,9.18048263]
[1765157203457,0.79,133.06,133.03,9.18048263]
[1765157204378,8.30551812,133.06,133.03,9.18048263]
[1765157204946,7.61551812,133.06,133.02,9.18048263]
[1765157205149,0.69,133.05,133.02,9.18048263]
[1765157205566,0.1,133.06,133.03,9.18048263]
[1765157205766,0.1,133.06,133.05,9.18048263]
[1765157206175,0.1,133.06,133.04,9.89048263]
[1765157206562,0.1,133.06,133.04,9.18048263]
[1765157206778,8.30555727,133.06,133.03,9.18048263]
[1765157206994,8.30555727,133.06,133.04,9.18048263]
[1765157206995,7.61555727,133.06,133.04,9.18048263]
[1765157207281,7.61555727,133.06,133.03,9.89048263]
[1765157207776,0.1,133.06,133.04,9.89048263]
[1765157209264,0.79,133.06,133.03,9.18048263]
[1765157209464,0.1,133.06,133.03,9.89048263]
[1765157209779,0.1,133.06,133.04,9.18048263]
[1765157209982,0.1,133.06,133.05,9.18048263]
[1765157210463,0.1,133.06,133.05,9.89048263]
[1765157211253,0.1,133.06,133.05,17.40645406]
[1765157211751,0.1,133.06,133.05,9.89048263]
[1765157212603,0.1,133.06,133.05,17.40645406]
[1765157213252,0.1,133.06,133.05,26.21639898]
[1765157216181,0.1,133.06,133.05,17.40645406]
[1765157216390,0.1,133.06,133.05,9.89048263]
[1765157216558,0.1,133.06,133.04,18.20048263]
[1765157216982,0.1,133.06,133.05,0.72]
[1765157217287,0.1,133.06,133.05,9.90048263]
[1765157218265,0.1,133.06,133.05,17.41645406]
[1765157218761,0.1,133.06,133.05,5.91513903]
[1765157218967,0.1,133.06,133.05,6.63513903]
[1765157221461,0.1,133.06,133.05,0.72]
[1765157221874,0.1,133.06,133.05,17.028864]
[1765157223577,6.01513903,133.06,133.05,0.72]
[1765157226399,14.21089437,133.06,133.01,0.72]
[1765157226695,5.91513903,133.02,133.01,8.3]
[1765157227295,5.91513903,133.02,133.01,9.02]
[1765157227681,5.91513903,133.02,132.98,7.51976785]
[1765157227886,5.91513903,133.01,132.99,9.02]
[1765157228199,5.91513903,133.0,132.99,9.02]
[1765157228587,5.91513903,133.0,132.95,16.33121532]
[1765157228777,5.91513903,132.99,132.98,0.72]
[1765157230198,5.91513903,133.0,132.98,0.72]
[1765157230377,5.91513903,133.02,132.98,0.72]
[1765157230586,5.91513903,133.01,132.98,0.72]
[1765157230789,5.91513903,133.0,132.99,0.5]
[1765157231094,5.91513903,133.0,132.98,0.72]
[1765157232092,5.91513903,132.99,132.98,0.72]
[1765157234109,5.91513903,132.99,132.97,8.3]
[1765157234407,5.91513903,132.98,132.95,17.028864]
[1765157234700,5.91513903,132.97,132.96,9.02]
[1765157235406,5.91513903,132.98,132.96,9.02]
[1765157235707,8.1983441,133.01,132.97,0.72]
[1765157236006,5.91513903,132.99,132.97,0.72]
[1765157236393,5.91513903,132.98,132.97,0.72]
[1765157236594,0.68,133.01,132.97,0.72]
[1765157236813,5.91513903,132.98,132.97,0.72]
[1765157238409,45.97921711,133.06,132.97,0.72]
[1765157238410,5.91513903,133.01,132.97,0.72]
[1765157238717,5.91513903,133.03,132.98,24.608864]
[1765157238929,5.91513903,133.03,132.98,40.917728]
[1765157239210,5.91513903,133.03,132.99,0.72]
[1765157239397,5.91513903,133.04,132.99,0.72]
[1765157239780,5.91513903,133.05,132.99,6.63513903]
[1765157240214,5.91513903,133.05,133.0,0.72]
[1765157240510,5.91513903,133.05,133.01,8.32]
[1765157240915,5.91513903,133.05,133.02,1.19]
[1765157241287,5.91513903,133.05,133.03,0.69]
[1765157241613,0.1,133.06,133.02,0.5]
[1765157241614,5.91513903,133.04,133.02,0.5]
[1765157241844,7.61546371,133.06,133.02,0.5]
[1765157241845,5.91513903,133.05,133.03,0.69]
[1765157242517,6.01513903,133.06,133.03,0.69]
[1765157242712,2.30997958,133.06,133.03,0.69]
[1765157243021,2.20997958,133.05,133.03,0.69]
[1765157243317,2.20997958,133.04,133.02,0.5]
[1765157243627,2.20997958,133.04,133.02,1.19]
[1765157244909,2.20997958,133.03,133.02,1.19]
[1765157245107,2.20997958,133.04,133.02,1.19]
[1765157245417,2.20997958,133.03,133.02,0.5]
[1765157247302,2.20997958,133.03,133.02,1.19]
[1765157248117,2.20997958,133.04,133.02,1.19]
[1765157248420,2.20997958,133.04,133.03,0.69]
[1765157250329,0.1,133.06,133.03,0.69]
[1765157250639,2.20997958,133.05,133.03,0.69]
[1765157250927,2.20997958,133.04,133.02,0.5]
[1765157251226,2.20997958,133.04,133.02,1.19]
[1765157252022,2.20997958,133.05,133.02,1.19]
[1765157252532,2.20997958,133.04,133.02,1.19]
[1765157252905,2.20997958,133.04,133.02,0.5]
[1765157253730,2.20997958,133.04,133.02,1.19]
[1765157253918,2.20997958,133.05,133.02,1.19]
[1765157254618,2.90997958,133.05,133.02,0.5]
[1765157255833,2.30997958,133.06,133.02,1.19]
[1765157256007,3.00997958,133.06,133.02,1.19]
[1765157256203,0.8,133.06,133.02,1.19]
[1765157256408,3.00997958,133.06,133.02,1.19]
[1765157256608,2.20997958,133.05,133.02,1.19]
[1765157258227,2.20997958,133.05,133.02,0.5]
[1765157258431,0.1,133.06,133.03,0.69]
[1765157258604,0.1,133.06,133.04,8.3]
[1765157259010,0.1,133.06,133.05,0.69]
[1765157262514,0.1,133.06,133.05,2.89997958]
[1765157264241,0.1,133.06,133.05,10.41595101]
[1765157265041,0.1,133.06,133.05,19.22589593]
[1765157265338,0.1,133.06,133.05,27.43853159]
[1765157265725,0.1,133.06,133.05,25.22855201]
[1765157266029,0.1,133.06,133.05,27.43853159]
[1765157267246,0.1,133.06,133.05,10.41595101]
[1765157267419,0.1,133.06,133.05,0.69]
[1765157267741,0.1,133.06,133.04,8.3]
[1765157267911,0.1,133.06,133.04,8.99]
[1765157268315,0.1,133.06,133.04,8.3]
[1765157268524,0.1,133.06,133.04,8.99]
[1765157271544,0.1,133.06,133.04,8.3]
[1765157271748,10.49565557,133.06,133.02,0.5]
[1765157272048,10.49565557,133.06,133.02,8.3]
[1765157272049,2.20997958,133.04,133.02,8.3]
[1765157272227,2.87997958,133.05,133.02,8.3]
[1765157272548,10.49565557,133.06,133.02,8.97]
[1765157272728,2.97997958,133.06,133.02,8.97]
[1765157273418,2.20997958,133.05,133.02,8.97]
[1765157273636,10.49540768,133.06,133.02,8.97]
[1765157274140,0.77,133.06,133.02,8.97]
[1765157275240,0.77,133.06,133.02,8.3]
[1765157275459,0.77,133.06,133.03,0.67]
[1765157275669,0.77,133.06,133.02,8.97]
[1765157276152,10.49542998,133.06,133.02,8.97]
[1765157276892,0.1,133.06,133.03,0.67]
[1765157277550,0.76,133.06,133.03,0.67]
[1765157277850,0.1,133.06,133.03,2.87997958]
[1765157278056,0.1,133.06,133.04,2.20997958]
[1765157278230,0.1,133.06,133.05,8.3]
[1765157278430,0.1,133.06,133.05,9.0]
[1765157278741,0.1,133.06,133.05,11.20997958]